fUSD/lending_fUSD_20240217
["ID","MTS","AMOUNT","RATE_DAILY","PERIOD"]
[314289540,1708157469323,-1210.8,0.00050958,14]
[314289541,1708157469333,-643.5,0.00050958,60]
[314289542,1708157469344,-1614.2,0.00050958,60]
[314289543,1708157469353,-3236.35,0.00050958,60]
[314289544,1708157469362,-502.24,0.00050958,60]
[314289545,1708157469372,-271.01725154,0.00050958,60]
[314289546,1708157469381,-804.5,0.00050958,60]
[314289547,1708157469390,-500.0,0.00050958,60]
[314289548,1708157469400,-500.0,0.00050958,60]
[314289549,1708157469490,-910.43,0.00050958,60]
[314289550,1708157469500,-500.0,0.00050958,60]
[314289551,1708157469510,-500.0,0.00050958,60]
[314289552,1708157469519,-500.0,0.00050958,60]
[314289553,1708157469529,-500.0,0.00050958,60]
[314289554,1708157469539,-532.93,0.00050958,60]
[314289555,1708157469548,-500.0,0.00050958,60]
[314289556,1708157469557,-500.0,0.00050958,60]
[314289557,1708157469567,-233.59221271,0.00050958,60]
[314289558,1708157469577,-500.0,0.00050958,60]
[314289559,1708157469587,-2150.49,0.00050958,60]
[314289560,1708157469596,-958.24,0.00050958,60]
[314289561,1708157469606,-1655.71,0.00050958,60]
[314289562,1708157469616,-500.0,0.00050958,60]
[314289563,1708157469626,-543.92,0.00050958,60]
[314289564,1708157469635,-707.56,0.00050958,60]
[314289565,1708157469645,-500.0,0.00050958,60]
[314289566,1708157469655,-203.90726346,0.00050958,60]
[314289567,1708157469665,-1947.64,0.00050958,60]
[314289568,1708157469674,-500.0,0.00050958,60]
[314289569,1708157469684,-1182.25,0.00050958,60]
[314289570,1708157469694,-713.76,0.00050958,60]
[314289571,1708157469704,-1133.06,0.00050958,60]
[314289572,1708157469714,-577.85,0.00050958,60]
[314289573,1708157469723,-500.0,0.00050958,60]
[314289574,1708157469734,-1166.8,0.00050958,60]
[314289575,1708157469743,-500.0,0.00050958,60]
[314289576,1708157469753,-261.19416772,0.00050958,60]
[314289577,1708157469763,-554.4,0.00050958,60]
[314289578,1708157469772,-500.0,0.00050958,60]
[314289579,1708157469782,-569.35,0.00050958,60]
[314289580,1708157469792,-500.0,0.00050958,60]
[314289581,1708157469802,-500.0,0.00050958,60]
[314289582,1708157469811,-739.49,0.00050958,60]
[314289583,1708157469821,-500.0,0.00050958,60]
[314289584,1708157469830,-500.0,0.00050958,60]
[314289585,1708157469840,-11780.69,0.00050958,60]
[314289586,1708157469850,-500.0,0.00050958,60]
[314289587,1708157469863,-500.0,0.00050958,60]
[314289588,1708157469872,-879.44,0.00050958,60]
[314289589,1708157469882,-500.0,0.00050958,60]
[314289590,1708157469892,-412.14,0.00050959,30]
[314289591,1708157469902,-419.0,0.00050959,30]
[314289592,1708157469911,-150.0,0.00050959,30]
[314289593,1708157469920,-343.57,0.00050959,30]
[314289594,1708157469931,-422.68,0.00050959,30]
[314289595,1708157469941,-150.0,0.00050959,30]
[314289596,1708157469950,-412.14,0.00050959,30]
[314289597,1708157469960,-150.0,0.00050959,30]
[314289598,1708157469971,-419.0,0.00050959,30]
[314289599,1708157469980,-150.0,0.00050959,30]
[314289600,1708157469990,-343.57,0.00050959,30]
[314289601,1708157470001,-150.0,0.00050959,30]
[314289602,1708157470010,-343.57,0.00050959,30]
[314289603,1708157470021,-419.0,0.00050959,30]
[314289604,1708157470031,-150.0,0.00050959,30]
[314289605,1708157470041,-343.57,0.00050959,30]
[314289606,1708157470052,-150.0,0.00050959,30]
[314289607,1708157470062,-412.14,0.00050959,30]
[314289608,1708157470071,-419.0,0.00050959,30]
[314289609,1708157470080,-150.0,0.00050959,30]
[314289610,1708157470092,-412.14,0.00050959,30]
[314289611,1708157470101,-150.0,0.00050959,30]
[314289612,1708157470110,-419.0,0.00050959,30]
[314289613,1708157470120,-343.57,0.00050959,30]
[314289614,1708157470130,-168.82,0.00050959,30]
[314289615,1708157470140,-150.0,0.00050959,30]
[314289616,1708157470150,-412.14,0.00050959,30]
[314289617,1708157470160,-150.0,0.00050959,30]
[314289618,1708157470169,-412.14,0.00050959,30]
[314289619,1708157470178,-412.14,0.00050959,30]
[314289620,1708157470188,-412.14,0.00050959,30]
[314289621,1708157470199,-412.14,0.00050959,30]
[314289622,1708157470209,-412.14,0.00050959,30]
[314289623,1708157470218,-412.14,0.00050959,30]
[314289624,1708157470229,-412.14,0.00050959,30]
[314289625,1708157470238,-306.04,0.00050959,30]
[314289626,1708157470248,-219.0,0.00050963,60]
[314289627,1708157470259,-2000.0,0.00050964,7]
[314289628,1708157470268,-200.0,0.00050964,7]
[314289629,1708157470278,-2000.0,0.00050964,7]
[314289630,1708157470287,-200.0,0.00050964,7]
[314289631,1708157470296,-2399.02661455,0.00050979,7]
[314289632,1708157470306,-1352.46549626,0.00050979,3]
[314289633,1708157470315,-200.0,0.00050987,75]
[314289634,1708157470325,-200.0,0.00050987,72]
[314289635,1708157470334,-300.0,0.00051,51]
[314289636,1708157470343,-3264.90727852,0.00051,15]
[314289637,1708157470353,-262.62270052,0.0005102,2]
[314289638,1708157470362,-181.1422951,0.00051074,2]
[314289639,1708157470371,-150.0,0.00051099,120]
[314289640,1708157470380,-3378.77425326,0.000511,14]
[314289641,1708157470389,-150.0,0.00051114,60]
[314289642,1708157470398,-156.00262594,0.00051122,2]
[314289643,1708157470408,-151.98,0.00051142,2]
[314289644,1708157470417,-173.021788,0.00051148,100]
[314289645,1708157470426,-432.0,0.00051169,30]
[314289646,1708157470435,-672.06748298,0.00051207,2]
[314289647,1708157470444,-746.6241572,0.0005121,3]
[314289648,1708157470453,-184.52363245,0.00051217,2]
[314289649,1708157470462,-243.13420882,0.00051219,2]
[314289650,1708157470471,-2279.885072,0.00051223,2]
[314289651,1708157470480,-2509.0270487,0.00051223,2]
[314289652,1708157470489,-77689.2108977,0.00051223,2]
[314289653,1708157470498,-528.1518443,0.00051225,4]
[314289654,1708157470509,-2145.71528215,0.0005123,4]
[314289655,1708157470518,-2129.47856,0.0005123,55]
[314289656,1708157470527,-500.0,0.00051232,60]
[314289657,1708157470537,-500.0,0.00051232,60]
[314289658,1708157470546,-739.89,0.00051232,60]
[314289659,1708157470555,-531.64082434,0.00051232,60]
[314289660,1708157470563,-500.0,0.00051232,60]
[314289661,1708157470573,-500.0,0.00051232,60]
[314289662,1708157470582,-500.0,0.00051232,2]
[314289663,1708157470591,-500.0,0.00051232,60]
[314289664,1708157470600,-500.0,0.00051232,60]
[314289665,1708157470609,-500.0,0.00051232,2]
[314289666,1708157470618,-500.0,0.00051232,60]
[314289667,1708157470627,-500.0,0.00051232,60]
[314289668,1708157470636,-500.0,0.00051232,60]
[314289669,1708157470645,-500.0,0.00051232,60]
[314289670,1708157470655,-500.0,0.00051232,2]
[314289671,1708157470665,-500.0,0.00051232,60]
[314289672,1708157470674,-629.85,0.00051232,60]
[314289673,1708157470683,-500.0,0.00051232,60]
[314289674,1708157470692,-500.0,0.00051232,60]
[314289675,1708157470701,-500.0,0.00051232,2]
[314289676,1708157470710,-583.88,0.00051232,2]
[314289677,1708157470719,-618.81,0.00051232,60]
[314289678,1708157470729,-526.92,0.00051232,60]
[314289679,1708157470737,-500.0,0.00051232,60]
[314289680,1708157470746,-1028.76,0.00051232,2]
[314289681,1708157470756,-500.0,0.00051232,60]
[314289682,1708157470765,-500.0,0.00051232,60]
[314289683,1708157470851,-500.0,0.00051232,60]
[314289684,1708157470861,-500.0,0.00051232,60]
[314289685,1708157470870,-500.0,0.00051232,60]
[314289686,1708157470878,-500.0,0.00051232,60]
[314289687,1708157470887,-434.13,0.00051232,60]
[314289688,1708157470896,-1162.21,0.00051232,60]
[314289689,1708157470905,-150.0,0.00051232,60]
[314289690,1708157470914,-206.45793863,0.00051232,2]
[314289691,1708157470925,-500.0,0.00051232,60]
[314289692,1708157470934,-1393.94,0.00051232,60]
[314289693,1708157470944,-500.0,0.00051232,60]
[314289694,1708157470954,-500.0,0.00051232,60]
[314289695,1708157470963,-500.0,0.00051232,60]
[314289696,1708157470973,-618.32539217,0.00051232,60]
[314289697,1708157470982,-500.0,0.00051232,60]
[314289698,1708157470991,-717.72,0.00051232,60]
[314289699,1708157471000,-993.11,0.00051232,60]
[314289700,1708157471010,-500.0,0.00051232,60]
[314289701,1708157471021,-500.0,0.00051232,60]
[314289702,1708157471030,-500.0,0.00051232,60]
[314289703,1708157471039,-500.0,0.00051232,60]
[314289704,1708157471049,-500.0,0.00051232,60]
[314289705,1708157471058,-500.0,0.00051232,60]
[314289706,1708157471067,-500.73,0.00051232,60]
[314289707,1708157471077,-500.0,0.00051232,60]
[314289708,1708157471086,-500.0,0.00051232,2]
[314289709,1708157471095,-500.0,0.00051232,60]
[314289710,1708157471104,-854.01,0.00051232,60]
[314289711,1708157471114,-500.0,0.00051232,60]
[314289712,1708157471123,-500.0,0.00051232,60]
[314289713,1708157471132,-500.0,0.00051232,60]
[314289714,1708157471141,-500.0,0.00051232,60]
[314289715,1708157471151,-500.0,0.00051232,60]
[314289716,1708157471160,-500.0,0.00051232,60]
[314289717,1708157471169,-1515.85,0.00051232,60]
[314289718,1708157471179,-636.17,0.00051232,60]
[314289719,1708157471189,-500.0,0.00051232,7]
[314289720,1708157471199,-1186.43,0.00051232,60]
[314289721,1708157471210,-500.0,0.00051232,60]
[314289722,1708157471219,-390.57033283,0.00051232,60]
[314289723,1708157471228,-3147.75,0.00051232,60]
[314289724,1708157471237,-500.0,0.00051232,60]
[314289725,1708157471246,-500.0,0.00051232,60]
[314289726,1708157471257,-657.81,0.00051232,60]
[314289727,1708157471266,-569.8,0.00051232,60]
[314289728,1708157471276,-500.0,0.00051232,60]
[314289729,1708157471285,-5184.93,0.00051232,60]
[314289730,1708157471295,-500.0,0.00051232,60]
[314289731,1708157471304,-500.0,0.00051232,60]
[314289732,1708157471314,-556.89,0.00051232,60]
[314289733,1708157471323,-500.0,0.00051232,60]
[314289734,1708157471333,-1446.13,0.00051232,60]
[314289735,1708157471343,-500.0,0.00051232,60]
[314289736,1708157471352,-500.0,0.00051232,60]
[314289737,1708157471362,-500.0,0.00051232,60]
[314289738,1708157471370,-500.0,0.00051232,60]
[314289739,1708157471380,-500.0,0.00051232,60]
[314289740,1708157471389,-349.17,0.00051232,60]
[314289741,1708157471399,-500.0,0.00051232,60]
[314289742,1708157471408,-500.0,0.00051232,60]
[314289743,1708157471417,-500.0,0.00051232,60]
[314289744,1708157471426,-500.0,0.00051232,60]
[314289745,1708157471436,-500.0,0.00051232,60]
[314289746,1708157471447,-500.0,0.00051232,60]
[314289747,1708157471468,-1868.35,0.00051232,60]
[314289748,1708157471483,-1210.8,0.00051232,14]
[314289749,1708157471502,-643.5,0.00051232,60]
[314289750,1708157471518,-3236.35,0.00051232,60]
[314289751,1708157471536,-1614.2,0.00051232,60]
[314289752,1708157471552,-502.24,0.00051232,60]
[314289753,1708157471566,-804.5,0.00051232,60]
[314289754,1708157471586,-500.0,0.00051232,60]
[314289755,1708157471602,-500.0,0.00051232,60]
[314289756,1708157471620,-910.43,0.00051232,60]
[314289757,1708157471640,-500.0,0.00051232,60]
[314289758,1708157471654,-500.0,0.00051232,60]
[314289759,1708157471670,-500.0,0.00051232,60]
[314289760,1708157471686,-500.0,0.00051232,60]
[314289761,1708157471701,-532.93,0.00051232,60]
[314289762,1708157471715,-500.0,0.00051232,60]
[314289763,1708157471730,-500.0,0.00051232,60]
[314289764,1708157471745,-284.85464846,0.00051232,60]
[314289765,1708157471760,-2150.49,0.00051232,60]
[314289766,1708157471774,-958.24,0.00051232,60]
[314289767,1708157471790,-1655.71,0.00051232,60]
[314289768,1708157471804,-500.0,0.00051232,60]
[314289769,1708157471818,-543.92,0.00051232,60]
[314289770,1708157471833,-707.56,0.00051232,60]
[314289771,1708157471847,-500.0,0.00051232,60]
[314289772,1708157471861,-1947.64,0.00051232,60]
[314289773,1708157471875,-500.0,0.00051232,60]
[314289774,1708157471889,-1182.25,0.00051232,60]
[314289775,1708157471904,-713.76,0.00051232,60]
[314289776,1708157471917,-1133.06,0.00051232,60]
[314289777,1708157471932,-577.85,0.00051232,60]
[314289778,1708157471946,-468.33368887,0.00051232,60]
[314289779,1708157471960,-1166.8,0.00051232,60]
[314289780,1708157471975,-500.0,0.00051232,60]
[314289781,1708157471989,-554.4,0.00051232,60]
[314289782,1708157472004,-572.06452508,0.00051232,60]
[314289783,1708157472020,-569.35,0.00051232,60]
[314289784,1708157472035,-500.0,0.00051232,60]
[314289785,1708157472049,-500.0,0.00051232,60]
[314289786,1708157472064,-739.49,0.00051232,60]
[314289787,1708157472077,-500.0,0.00051232,60]
[314289788,1708157472092,-500.0,0.00051232,60]
[314289789,1708157472106,-11780.69,0.00051232,60]
[314289790,1708157472121,-500.0,0.00051232,60]
[314289791,1708157472135,-396.9705489,0.00051232,60]
[314289792,1708157472150,-879.44,0.00051232,60]
[314289793,1708157472165,-500.0,0.00051232,60]
[314289794,1708157472180,-269.97252737,0.00051238,3]
[314289795,1708157472195,-558.92093825,0.00051241,4]
[314289796,1708157472209,-439.40234803,0.00051241,2]
[314289797,1708157472226,-855926.34405218,0.00051258,120]
[314289798,1708157472241,-5060.451987,0.0005126,2]
[314289799,1708157472258,-200.0,0.00051387,38]
[314289800,1708157472274,-25000.0,0.000514,120]
[314289801,1708157472289,-17515.0,0.000514,120]
[314289802,1708157472304,-167.45,0.000514,7]
[314289803,1708157472319,-154.89,0.000514,7]
[314289804,1708157472333,-154.89,0.000514,7]
[314289805,1708157472348,-153.52,0.000514,7]
[314289806,1708157472362,-153.52,0.000514,7]
[314289807,1708157472487,-153.52,0.000514,7]
[314289808,1708157472498,-153.52,0.000514,7]
[314289809,1708157472510,-153.52,0.000514,7]
[314289810,1708157472519,-153.52,0.000514,7]
[314289811,1708157472528,-153.52,0.000514,7]
[314289812,1708157472537,-153.52,0.000514,7]
[314289813,1708157472547,-153.52,0.000514,7]
[314289814,1708157472556,-153.52,0.000514,7]
[314289815,1708157472565,-153.52,0.000514,7]
[314289816,1708157472574,-153.52,0.000514,7]
[314289817,1708157472583,-153.52,0.000514,7]
[314289818,1708157472592,-153.52,0.000514,7]
[314289819,1708157472601,-153.52,0.000514,7]
[314289820,1708157472610,-153.52,0.000514,7]
[314289821,1708157472619,-153.52,0.000514,7]
[314289822,1708157472628,-153.52,0.000514,7]
[314289823,1708157472637,-153.52,0.000514,7]
[314289824,1708157472647,-953.0,0.00051416,120]
[314289825,1708157472655,-842.0,0.00051416,2]
[314289826,1708157472664,-708.0,0.00051416,120]
[314289827,1708157472674,-1949.0,0.00051416,120]
[314289828,1708157472683,-1255.0,0.00051416,120]
[314289829,1708157472693,-1231.0,0.00051416,120]
[314289830,1708157472702,-179.021788,0.00051448,100]
[314289831,1708157472712,-196.409247,0.00051453,30]
[314289832,1708157472722,-185.933349,0.00051453,30]
[314289833,1708157472731,-158.166395,0.00051453,30]
[314289834,1708157472740,-858.0,0.00051459,120]
[314289835,1708157472750,-429.0,0.00051459,120]
[314289836,1708157472760,-237.0,0.00051459,120]
[314289837,1708157472771,-1005.0,0.00051459,120]
[314289838,1708157472781,-217.884,0.00051459,120]
[314289839,1708157472790,-343.0,0.00051459,120]
[314289840,1708157472799,-2871.0,0.00051464,120]
[314289841,1708157472808,-321.0,0.00051464,120]
[314289842,1708157472817,-5231.257,0.00051487,120]
[314289843,1708157472826,-15904.988,0.00051487,120]
[314289844,1708157472835,-2290.0,0.00051487,120]
[314289845,1708157472844,-2928.0,0.00051487,120]
[314289846,1708157472853,-1037.0,0.00051487,120]
[314289847,1708157472863,-3000.0,0.000515,45]
[314289848,1708157472872,-5000.0,0.000515,60]
[314289849,1708157472881,-5000.0,0.000515,60]
[314289850,1708157472890,-3000.0,0.000515,45]
[314289851,1708157472899,-5000.0,0.000515,60]
[314289852,1708157472908,-3000.0,0.000515,45]
[314289853,1708157472917,-3000.0,0.000515,45]
[314289854,1708157472928,-5000.0,0.000515,60]
[314289855,1708157472938,-3000.0,0.000515,45]
[314289856,1708157472947,-5000.0,0.000515,60]
[314289857,1708157472957,-3000.0,0.000515,45]
[314289858,1708157472966,-5000.0,0.000515,60]
[314289859,1708157472975,-3000.0,0.000515,45]
[314289860,1708157472983,-2070.400953,0.00051506,30]
[314289861,1708157472993,-1479.334591,0.00051506,30]
[314289862,1708157473002,-709.947109,0.00051506,30]
[314289863,1708157473012,-4326.938175,0.00051506,30]
[314289864,1708157473022,-500.0,0.00051506,60]
[314289865,1708157473031,-17321.338672,0.00051506,30]
[314289866,1708157473041,-500.0,0.00051506,60]
[314289867,1708157473050,-739.89,0.00051506,60]
[314289868,1708157473059,-3373.152201,0.00051506,120]
[314289869,1708157473068,-500.0,0.00051506,60]
[314289870,1708157473077,-500.0,0.00051506,60]
[314289871,1708157473086,-500.0,0.00051506,2]
[314289872,1708157473095,-408.56987597,0.00051506,60]
[314289873,1708157473105,-500.0,0.00051506,60]
[314289874,1708157473115,-500.0,0.00051506,2]
[314289875,1708157473124,-500.0,0.00051506,60]
[314289876,1708157473134,-186.67227979,0.00051506,60]
[314289877,1708157473143,-500.0,0.00051506,60]
[314289878,1708157473152,-500.0,0.00051506,60]
[314289879,1708157473162,-500.0,0.00051506,2]
[314289880,1708157473172,-500.0,0.00051506,60]
[314289881,1708157473182,-629.85,0.00051506,60]
[314289882,1708157473192,-500.0,0.00051506,60]
[314289883,1708157473202,-500.0,0.00051506,60]
[314289884,1708157473211,-500.0,0.00051506,2]
[314289885,1708157473221,-583.88,0.00051506,2]
[314289886,1708157473230,-618.81,0.00051506,60]
[314289887,1708157473239,-526.92,0.00051506,60]
[314289888,1708157473248,-500.0,0.00051506,60]
[314289889,1708157473259,-1028.76,0.00051506,2]
[314289890,1708157473269,-500.0,0.00051506,60]
[314289891,1708157473279,-228.14314416,0.00051506,60]
[314289892,1708157473288,-500.0,0.00051506,60]
[314289893,1708157473298,-200.5,0.00051506,60]
[314289894,1708157473307,-500.0,0.00051506,60]
[314289895,1708157473316,-500.0,0.00051506,60]
[314289896,1708157473325,-1162.21,0.00051506,60]
[314289897,1708157473335,-2289.6125,0.00051506,7]
[314289898,1708157473344,-287.27418076,0.00051506,60]
[314289899,1708157473354,-500.0,0.00051506,60]
[314289900,1708157473364,-1393.94,0.00051506,60]
[314289901,1708157473373,-500.0,0.00051506,60]
[314289902,1708157473383,-155.58994944,0.00051506,60]
[314289903,1708157473392,-500.0,0.00051506,60]
[314289904,1708157473401,-486.09409204,0.00051506,60]
[314289905,1708157473410,-717.72,0.00051506,60]
[314289906,1708157473420,-993.11,0.00051506,60]
[314289907,1708157473429,-500.0,0.00051506,60]
[314289908,1708157473438,-500.0,0.00051506,60]
[314289909,1708157473447,-500.0,0.00051506,60]
[314289910,1708157473457,-500.0,0.00051506,60]
[314289911,1708157473466,-500.0,0.00051506,60]
[314289912,1708157473475,-500.0,0.00051506,60]
[314289913,1708157473484,-500.73,0.00051506,60]
[314289914,1708157473494,-500.0,0.00051506,60]
[314289915,1708157473503,-500.0,0.00051506,2]
[314289916,1708157473513,-500.0,0.00051506,60]
[314289917,1708157473522,-854.01,0.00051506,60]
[314289918,1708157473531,-152.49287195,0.00051506,60]
[314289919,1708157473540,-500.0,0.00051506,60]
[314289920,1708157473549,-500.0,0.00051506,60]
[314289921,1708157473559,-500.0,0.00051506,60]
[314289922,1708157473568,-500.0,0.00051506,60]
[314289923,1708157473578,-500.0,0.00051506,60]
[314289924,1708157473587,-1515.85,0.00051506,60]
[314289925,1708157473596,-636.17,0.00051506,60]
[314289926,1708157473605,-500.0,0.00051506,7]
[314289927,1708157473614,-1186.43,0.00051506,60]
[314289928,1708157473623,-500.0,0.00051506,60]
[314289929,1708157473632,-3147.75,0.00051506,60]
[314289930,1708157473641,-500.0,0.00051506,60]
[314289931,1708157473650,-500.0,0.00051506,60]
[314289932,1708157473660,-657.81,0.00051506,60]
[314289933,1708157473669,-569.8,0.00051506,60]
[314289934,1708157473679,-500.0,0.00051506,60]
[314289935,1708157473688,-5184.93,0.00051506,60]
[314289936,1708157473697,-500.0,0.00051506,60]
[314289937,1708157473706,-500.0,0.00051506,60]
[314289938,1708157473715,-556.89,0.00051506,60]
[314289939,1708157473724,-500.0,0.00051506,60]
[314289940,1708157473733,-1446.13,0.00051506,60]
[314289941,1708157473743,-500.0,0.00051506,60]
[314289942,1708157473752,-500.0,0.00051506,60]
[314289943,1708157473763,-500.0,0.00051506,60]
[314289944,1708157473772,-500.0,0.00051506,60]
[314289945,1708157473781,-500.0,0.00051506,60]
[314289946,1708157473790,-260.98208798,0.00051506,60]
[314289947,1708157473799,-500.0,0.00051506,60]
[314289948,1708157473808,-500.0,0.00051506,60]
[314289949,1708157473818,-500.0,0.00051506,60]
[314289950,1708157473826,-500.0,0.00051506,60]
[314289951,1708157473836,-500.0,0.00051506,60]
[314289952,1708157473845,-1868.35,0.00051506,60]
[314289953,1708157473854,-1210.8,0.00051506,14]
[314289954,1708157473863,-643.5,0.00051506,60]
[314289955,1708157473871,-3236.35,0.00051506,60]
[314289956,1708157473880,-1614.2,0.00051506,60]
[314289957,1708157473890,-502.24,0.00051506,60]
[314289958,1708157473899,-804.5,0.00051506,60]
[314289959,1708157473908,-500.0,0.00051506,60]
[314289960,1708157473917,-500.0,0.00051506,60]
[314289961,1708157473930,-910.43,0.00051506,60]
[314289962,1708157473942,-500.0,0.00051506,60]
[314289963,1708157473952,-500.0,0.00051506,60]
[314289964,1708157473961,-303.54448397,0.00051506,60]
[314289965,1708157473971,-500.0,0.00051506,60]
[314289966,1708157473981,-532.93,0.00051506,60]
[314289967,1708157473991,-500.0,0.00051506,60]
[314289968,1708157474001,-500.0,0.00051506,60]
[314289969,1708157474097,-2150.49,0.00051506,60]
[314289970,1708157474107,-958.24,0.00051506,60]
[314289971,1708157474116,-1655.71,0.00051506,60]
[314289972,1708157474126,-500.0,0.00051506,60]
[314289973,1708157474136,-543.92,0.00051506,60]
[314289974,1708157474146,-707.56,0.00051506,60]
[314289975,1708157474155,-500.0,0.00051506,60]
[314289976,1708157474164,-1947.64,0.00051506,60]
[314289977,1708157474174,-500.0,0.00051506,60]
[314289978,1708157474185,-1182.25,0.00051506,60]
[314289979,1708157474195,-713.76,0.00051506,60]
[314289980,1708157474204,-1133.06,0.00051506,60]
[314289981,1708157474214,-577.85,0.00051506,60]
[314289982,1708157474223,-1166.8,0.00051506,60]
[314289983,1708157474232,-500.0,0.00051506,60]
[314289984,1708157474242,-554.4,0.00051506,60]
[314289985,1708157474252,-569.35,0.00051506,60]
[314289986,1708157474263,-500.0,0.00051506,60]
[314289987,1708157474272,-500.0,0.00051506,60]
[314289988,1708157474281,-739.49,0.00051506,60]
[314289989,1708157474291,-500.0,0.00051506,60]
[314289990,1708157474301,-500.0,0.00051506,60]
[314289991,1708157474310,-11780.69,0.00051506,60]
[314289992,1708157474320,-500.0,0.00051506,60]
[314289993,1708157474330,-879.44,0.00051506,60]
[314289994,1708157474339,-500.0,0.00051506,60]
[314289995,1708157474349,-219.0,0.00051511,60]
[314289996,1708157474358,-158.23203844,0.00051549,60]
[314289997,1708157474368,-238.4273123,0.00051598,30]
[314289998,1708157474376,-1612.58,0.00051601,2]
[314289999,1708157474386,-205.0,0.00051647,39]
[314290000,1708157474395,-432.0,0.00051681,30]
[314290001,1708157474404,-173.021788,0.00051748,100]
[314290002,1708157474414,-200.0,0.00051777,70]
[314290003,1708157474423,-200.0,0.00051777,80]
[314290004,1708157474432,-500.0,0.0005178,60]
[314290005,1708157474441,-500.0,0.0005178,60]
[314290006,1708157474450,-739.89,0.0005178,60]
[314290007,1708157474459,-500.0,0.0005178,60]
[314290008,1708157474469,-500.0,0.0005178,2]
[314290009,1708157474478,-500.0,0.0005178,60]
[314290010,1708157474487,-500.0,0.0005178,2]
[314290011,1708157474496,-500.0,0.0005178,60]
[314290012,1708157474506,-500.0,0.0005178,60]
[314290013,1708157474515,-500.0,0.0005178,60]
[314290014,1708157474524,-500.0,0.0005178,2]
[314290015,1708157474533,-500.0,0.0005178,60]
[314290016,1708157474543,-629.85,0.0005178,60]
[314290017,1708157474552,-500.0,0.0005178,60]
[314290018,1708157474561,-500.0,0.0005178,2]
[314290019,1708157474570,-583.88,0.0005178,2]
[314290020,1708157474579,-618.81,0.0005178,60]
[314290021,1708157474588,-526.92,0.0005178,60]
[314290022,1708157474597,-500.0,0.0005178,60]
[314290023,1708157474607,-1028.76,0.0005178,2]
[314290024,1708157474616,-500.0,0.0005178,60]
[314290025,1708157474625,-500.0,0.0005178,60]
[314290026,1708157474634,-500.0,0.0005178,60]
[314290027,1708157474643,-583.06975454,0.0005178,7]
[314290028,1708157474653,-326.2436448,0.0005178,60]
[314290029,1708157474662,-1162.21,0.0005178,60]
[314290030,1708157474672,-500.0,0.0005178,60]
[314290031,1708157474682,-1393.94,0.0005178,60]
[314290032,1708157474691,-500.0,0.0005178,60]
[314290033,1708157474700,-500.0,0.0005178,60]
[314290034,1708157474709,-717.72,0.0005178,60]
[314290035,1708157474718,-993.11,0.0005178,60]
[314290036,1708157474728,-500.0,0.0005178,60]
[314290037,1708157474737,-500.0,0.0005178,60]
[314290038,1708157474746,-500.0,0.0005178,60]
[314290039,1708157474756,-500.0,0.0005178,60]